bitfinex-derivatives/quotes_BNBF0:USTF0_20241225
["timestamp","ask_amount","ask_price","bid_price","bid_amount"]
[1735124065867,0.25864819,711.75,710.25,1.03826242]
[1735124066066,0.25864819,711.74,710.26,1.03826242]
[1735124066266,0.25864648,711.73,710.26,1.03826242]
[1735124066466,0.25864648,711.72,710.26,1.03826242]
[1735124066766,0.25864648,711.71,710.26,1.03826242]
[1735124066967,1.05076328,711.83,710.26,1.03826242]
[1735124067169,1.05076328,711.8,710.26,1.03826242]
[1735124067362,0.25865904,711.79,710.26,1.03826242]
[1735124067564,0.25865904,711.78,710.26,1.03826242]
[1735124067765,0.25865904,711.77,710.26,1.03826242]
[1735124067968,1.30942232,711.76,710.2,1.03826242]
[1735124068167,0.25865904,711.75,710.2,1.03826242]
[1735124068361,0.25865904,711.74,710.2,1.03826242]
[1735124068566,0.25865904,711.73,710.2,1.03826242]
[1735124068765,0.25865904,711.72,710.17,1.03826242]
[1735124069068,0.25867414,711.71,710.17,1.03826242]
[1735124069262,0.25867414,711.7,710.17,1.03826242]
[1735124069465,0.25867414,711.69,710.17,1.03826242]
[1735124069661,0.25867414,711.68,710.17,1.03826242]
[1735124069865,0.25867414,711.67,710.17,1.03826242]
[1735124070070,0.25867414,711.66,710.17,1.03826242]
[1735124070266,0.25867414,711.65,710.17,1.03826242]
[1735124070469,0.25867414,711.64,710.17,1.03826242]
[1735124070770,0.25867414,711.64,709.61,2.11978578]
[1735124070771,0.25867414,711.63,710.08,1.03826242]
[1735124070969,0.25867414,711.62,710.08,1.03826242]
[1735124071169,0.25867414,711.61,710.08,1.03826242]
[1735124071470,0.25867414,711.6,710.08,1.03826242]
[1735124071666,0.25870175,711.59,710.08,1.03826242]
[1735124071874,0.63702621,711.96,710.06,1.03826242]
[1735124071875,0.25870175,711.58,710.06,1.03826242]
[1735124072064,0.25870175,711.57,710.06,1.03826242]
[1735124072269,0.25870175,711.56,710.06,1.03826242]
[1735124072469,0.25870175,711.55,710.06,1.03826242]
[1735124072773,0.25870175,711.54,710.01,1.03826242]
[1735124073075,0.25870175,711.53,710.01,1.03826242]
[1735124073272,0.25870175,711.52,710.01,1.03826242]
[1735124073468,0.25870175,711.51,710.01,1.03826242]
[1735124073672,0.25870175,711.5,710.01,1.03826242]
[1735124073866,0.25870175,711.49,710.01,1.03826242]
[1735124074073,0.25870175,711.48,710.0,1.03826242]
[1735124074373,0.25874599,711.47,710.0,1.03826242]
[1735124074571,0.25874599,711.46,710.0,1.03826242]
[1735124074768,0.25874599,711.45,710.0,1.03826242]
[1735124074968,0.25874599,711.44,710.0,1.03826242]
[1735124075175,0.25874599,711.43,709.83,1.03826242]
[1735124075473,0.25874599,711.42,709.83,1.03826242]
[1735124075667,0.25874599,711.41,709.83,1.03826242]
[1735124075871,0.25874599,711.4,709.83,1.03826242]
[1735124076070,0.25874599,711.39,709.83,1.03826242]
[1735124076271,0.25874599,711.38,709.78,1.03826242]
[1735124076474,0.25874599,711.37,709.78,1.03826242]
[1735124076678,0.25874599,711.36,709.78,1.03826242]
[1735124076877,0.25874599,711.35,709.78,1.03826242]
[1735124077077,0.25874599,711.43,709.78,1.03826242]
[1735124077277,0.25874599,711.42,709.78,1.03826242]
[1735124077479,1.077,711.44,709.48,1.03826242]
[1735124077480,0.25874599,711.41,709.48,1.03826242]
[1735124077773,0.25874599,711.4,709.48,1.03826242]
[1735124077971,0.25874599,711.39,709.48,1.03826242]
[1735124078172,0.25874599,711.38,709.48,1.03826242]
[1735124078378,0.25874599,711.37,709.48,1.03826242]
[1735124078679,0.25874599,711.36,709.35,1.03826242]
[1735124078879,1.077,711.44,709.35,1.03826242]
[1735124078880,0.25874599,711.35,709.35,1.03826242]
[1735124079074,0.25874599,711.34,709.35,1.03826242]
[1735124079280,0.25874599,711.33,709.35,1.03826242]
[1735124079479,0.25874599,711.32,709.35,1.03826242]
[1735124079678,0.25874599,711.31,709.35,1.03826242]
[1735124079878,0.25874599,711.3,709.15,1.03826242]
[1735124080076,0.25874599,711.29,709.15,1.03826242]
[1735124080277,0.25874599,711.28,709.15,1.03826242]
[1735124080479,0.25874599,711.27,709.15,1.03826242]
[1735124080773,0.25874599,711.26,709.15,1.03826242]
[1735124081072,0.25874599,711.25,709.15,1.03826242]
[1735124081279,0.25874599,711.24,709.04,1.03826242]
[1735124081475,0.25874599,711.23,709.04,1.03826242]
[1735124081678,0.25874599,711.22,709.04,1.03826242]
[1735124081876,0.25874599,711.21,709.04,1.03826242]
[1735124082182,0.25874599,711.2,708.88,0.28213519]
[1735124082380,0.25874599,711.19,708.88,0.28213519]
[1735124082581,0.25874599,711.18,708.88,0.28213519]
[1735124082876,0.25874599,711.17,708.88,0.28213519]
[1735124083082,1.038,711.34,708.88,0.28213519]
[1735124083283,0.2590067,711.33,708.88,0.28213519]
[1735124083581,0.2590067,711.32,708.88,0.28213519]
[1735124083780,0.2590067,711.31,708.88,0.28213519]
[1735124083974,0.2590067,711.3,708.88,0.28213519]
[1735124084181,0.2590067,711.29,708.88,0.28213519]
[1735124084384,0.2590067,711.28,708.88,0.28213519]
[1735124084579,0.89663952,711.27,708.88,0.28213519]
[1735124084780,0.89663952,711.26,708.88,0.28213519]
[1735124084981,0.89645906,711.25,708.88,0.28213519]
[1735124085281,0.25911625,711.24,708.88,0.28213519]
[1735124085478,0.25911625,711.23,708.88,0.28213519]
[1735124085675,0.89645906,711.22,708.88,0.28213519]
[1735124085982,0.89645906,711.21,708.88,0.28213519]
[1735124086180,0.89645906,711.2,708.88,0.28213519]
[1735124086383,0.89645906,711.19,708.88,0.28213519]
[1735124086579,0.25911625,711.18,708.88,0.28213519]
[1735124086881,0.89628546,711.17,708.88,0.28213519]
[1735124087082,0.89628546,711.16,708.88,0.28213519]
[1735124087276,0.89628546,711.15,708.88,0.28213519]
[1735124087476,0.89628546,711.14,708.88,0.28213519]
[1735124087785,7.01962987,711.34,708.88,0.28213519]
[1735124087786,0.89628546,711.13,708.88,0.28213519]
[1735124087978,1.05076328,711.29,708.88,0.28213519]
[1735124087979,0.89628546,711.12,708.88,0.28213519]
[1735124088176,0.89628546,711.11,708.88,0.28213519]
[1735124088378,0.89641753,711.1,708.88,0.28213519]
[1735124088678,0.89641753,711.09,708.88,0.28213519]
[1735124088887,0.89641753,711.08,708.88,0.28213519]
[1735124089078,0.25915648,711.07,708.88,0.28213519]
[1735124089281,0.25915648,711.06,708.88,0.28213519]
[1735124089481,0.25915648,711.05,708.88,0.28213519]
[1735124089683,0.25915648,711.04,708.88,0.28213519]
[1735124089898,0.25915648,711.03,708.88,0.28213519]
[1735124090184,0.25916006,711.02,708.88,0.28213519]
[1735124090377,0.25916006,711.01,708.88,0.28213519]
[1735124090582,0.25916006,711.0,708.88,0.28213519]
[1735124090779,0.25916006,710.99,708.88,0.28213519]
[1735124090984,0.25915098,710.98,708.88,0.28213519]
[1735124091179,1.038,711.34,708.88,0.28213519]
[1735124091378,0.25915016,710.97,708.88,0.28213519]
[1735124091576,0.25915016,711.33,708.88,0.28213519]
[1735124091781,0.25915016,711.32,708.88,0.28213519]
[1735124091986,0.25915016,711.31,708.88,0.28213519]
[1735124092284,0.25915016,711.3,708.88,0.28213519]
[1735124092485,0.25915016,711.29,708.88,0.28213519]
[1735124092680,0.25915016,711.28,708.88,0.28213519]
[1735124092880,1.038,711.34,708.88,0.28213519]
[1735124093086,0.25918926,711.33,708.88,0.28213519]
[1735124093286,1.038,711.34,708.88,0.28213519]
[1735124093287,0.25918926,711.32,708.88,0.28213519]
[1735124093586,0.25918926,711.31,708.88,0.28213519]
[1735124093787,0.25918926,711.3,708.88,0.28213519]
[1735124093989,0.25918926,711.29,708.88,0.28213519]
[1735124094187,0.25918926,711.28,708.88,0.28213519]
[1735124094383,0.25918926,711.27,708.88,0.28213519]
[1735124094688,0.25918926,711.26,708.88,0.28213519]
[1735124094890,1.939,711.34,708.88,0.28213519]
[1735124094891,0.89631093,711.25,708.88,0.28213519]
[1735124095088,0.89631093,711.24,708.88,0.28213519]
[1735124095283,0.89631093,711.23,708.88,0.28213519]
[1735124095482,0.89631093,711.22,708.88,0.28213519]
[1735124095683,0.63711936,711.21,708.88,0.28213519]
[1735124095990,0.8963091,711.2,708.88,0.28213519]
[1735124096289,0.25918974,711.19,707.27,1.03826242]
[1735124096589,0.8963091,711.18,707.27,1.03826242]
[1735124096782,0.8963091,711.17,707.27,1.03826242]
[1735124096985,1.939,711.34,707.46,0.28270149]
[1735124096986,0.8963091,711.16,707.46,0.28270149]
[1735124097186,0.8963091,711.15,707.46,0.28270149]
[1735124097482,0.8963091,711.14,707.46,0.28270149]
[1735124097688,0.8963091,711.13,707.46,0.28270149]
[1735124097882,1.939,711.34,707.46,0.28270149]
[1735124097883,0.8963091,711.12,707.46,0.28270149]
[1735124098085,0.8963091,711.11,707.46,0.28270149]
[1735124098388,0.8963091,711.1,707.46,0.28270149]
[1735124098579,0.8963091,711.09,707.46,0.28270149]
[1735124098781,0.8963091,711.08,707.46,0.28270149]
[1735124098986,0.8963091,711.07,707.46,0.28270149]
[1735124099185,0.25918612,711.06,707.46,0.28270149]
[1735124099381,0.25918612,711.05,707.46,0.28270149]
[1735124099585,0.25918612,711.04,707.46,0.28270149]
[1735124099790,0.25918612,711.03,707.46,0.28270149]
[1735124099989,0.25918612,711.02,707.46,0.28270149]
[1735124100191,0.25918612,711.01,707.46,0.28270149]
[1735124100389,0.25918612,711.0,707.46,0.28270149]
[1735124100685,1.939,711.34,707.46,0.28270149]
[1735124100885,0.63694189,711.29,707.46,0.28270149]
[1735124101089,0.89608114,711.28,707.46,0.28270149]
[1735124101291,1.939,711.34,707.46,0.28270149]
[1735124101292,0.89608114,711.27,707.52,1.03826242]
[1735124101484,0.89608114,711.26,707.52,1.03826242]
[1735124101689,0.89608114,711.25,707.52,1.03826242]
[1735124101889,0.89608114,711.24,707.52,1.03826242]
[1735124102086,0.25913925,711.23,707.52,1.03826242]
[1735124102291,0.25913925,711.22,707.68,1.03826242]
[1735124102585,0.25913925,711.21,707.68,1.03826242]
[1735124102785,0.25904113,711.2,707.68,1.03826242]
[1735124102990,0.25904113,711.19,707.68,1.03826242]
[1735124103190,0.25904113,711.18,707.68,1.03826242]
[1735124103391,0.795,711.22,707.46,0.28270149]
[1735124103392,0.25904113,711.17,707.84,1.03826242]
[1735124103583,0.795,711.22,707.84,1.03826242]
[1735124103584,0.25904113,711.16,707.84,1.03826242]
[1735124103785,0.25904113,711.15,707.84,1.03826242]
[1735124103986,0.25904113,711.14,707.47,0.7560669]
[1735124104189,0.25904113,711.13,707.47,0.7560669]
[1735124104385,0.25904113,711.12,707.47,0.7560669]
[1735124104589,0.25904113,711.11,707.47,0.7560669]
[1735124104994,0.25904113,711.1,707.47,0.7560669]
[1735124105191,0.25904113,711.09,707.47,0.7560669]
[1735124105592,0.25904113,711.08,707.85,1.03532385]
[1735124105996,0.25904113,711.07,707.85,1.03532385]
[1735124106399,0.25904113,711.06,707.85,1.03532385]
[1735124106599,0.25904113,711.06,708.0,1.03532385]
[1735124106798,0.25904113,711.05,708.0,1.03532385]
[1735124107000,0.25904113,711.04,708.0,1.03532385]
[1735124107200,0.25904113,711.03,708.0,1.03532385]
[1735124107400,0.25904113,711.02,708.0,1.03532385]
[1735124107595,0.25904113,711.01,708.21,1.03532385]
[1735124107796,0.25904113,711.0,708.21,1.03532385]
[1735124108001,0.25904113,710.99,708.21,1.03532385]
[1735124108195,0.795,711.22,708.21,1.03532385]
[1735124108196,0.25904113,710.98,708.21,1.03532385]
[1735124108396,0.25904113,710.97,708.36,1.03532385]
[1735124108596,0.25904113,710.96,708.36,1.03532385]
[1735124108798,0.25904113,710.95,708.36,1.03532385]
[1735124109101,0.25904113,710.94,708.36,1.03532385]
[1735124109396,0.25904113,710.93,708.36,1.03532385]
[1735124109604,0.25904113,710.92,708.44,1.03532385]
[1735124109896,0.25904113,710.91,708.44,1.03532385]
[1735124110102,0.25904113,710.9,708.44,1.03532385]
[1735124110300,0.25904113,710.89,708.44,1.03532385]
[1735124110499,0.25904113,710.88,708.44,1.03532385]
[1735124110696,0.25904113,710.87,708.44,1.03532385]
[1735124110897,0.25904113,710.86,708.51,1.03532385]
[1735124111102,1.168,710.88,708.51,1.03532385]
[1735124111103,0.25904113,710.85,708.51,1.03532385]
[1735124111303,0.25904113,710.84,708.51,1.03532385]
[1735124111498,0.25904113,710.83,708.51,1.03532385]
[1735124111702,0.25904113,710.82,708.56,1.03532385]
[1735124112002,0.25904113,710.81,708.56,1.03532385]
[1735124112199,0.25904113,710.8,708.56,1.03532385]
[1735124112403,0.25904113,710.79,708.56,1.03532385]
[1735124112600,0.25904113,710.78,708.59,1.03532385]
[1735124112799,0.25904113,710.77,708.59,1.03532385]
[1735124112999,0.25904113,710.76,708.59,1.03532385]
[1735124113203,1.168,710.88,708.63,1.03532385]
[1735124113402,0.25904237,710.87,708.63,1.03532385]
[1735124113599,0.25904237,710.86,708.63,1.03532385]
[1735124113799,0.25904237,710.85,708.63,1.03532385]
[1735124114005,0.25904237,710.84,708.63,1.03532385]
[1735124114203,0.25904237,710.83,708.65,1.03532385]
[1735124114505,0.25904237,710.82,708.65,1.03532385]
[1735124114705,0.25904237,710.81,708.65,1.03532385]
[1735124114908,0.25904237,710.8,708.65,1.03532385]
[1735124115104,0.25904237,710.79,708.65,1.03532385]
[1735124115302,0.25904237,710.78,708.65,1.03532385]
[1735124115500,1.168,710.88,708.52,1.03532385]
[1735124115501,0.25904237,710.77,708.76,1.03532385]
[1735124115704,0.25904237,710.76,708.76,1.03532385]
[1735124115901,1.168,710.88,708.76,1.03532385]
[1735124115902,0.25904237,710.75,708.76,1.03532385]
[1735124116101,0.25900079,710.74,708.76,1.03532385]
[1735124116306,0.25900079,710.73,708.76,1.03532385]
[1735124116607,0.25900079,710.72,708.88,1.03532385]
[1735124116801,1.168,710.88,708.88,1.03532385]
[1735124116802,0.25900079,710.71,708.88,1.03532385]
[1735124116999,0.25900079,710.7,708.88,1.03532385]
[1735124117201,0.25900079,710.69,708.88,1.03532385]
[1735124117406,0.25900079,710.68,708.78,1.03532385]
[1735124117608,0.25900079,710.67,708.78,1.03532385]
[1735124117908,0.25900079,710.66,708.78,1.03532385]
[1735124118208,0.25900079,710.66,708.01,2.11378621]
[1735124118209,0.25900079,710.65,708.81,1.03532385]
[1735124118409,0.25900079,710.64,708.81,1.03532385]
[1735124118609,1.168,710.88,708.81,1.03532385]
[1735124118908,0.25900289,710.87,708.81,1.03532385]
[1735124119406,0.25900289,710.86,708.67,1.03532385]
[1735124119610,0.25900289,710.85,708.67,1.03532385]
[1735124119802,0.25900289,710.84,708.67,1.03532385]
[1735124120002,0.25900289,710.83,708.67,1.03532385]
[1735124120207,0.25900289,710.82,708.67,1.03532385]
[1735124120401,0.25900289,710.81,708.67,1.03532385]
[1735124120607,0.25900289,710.8,708.81,1.03532385]
[1735124120808,0.25900289,710.79,708.81,1.03532385]
[1735124121107,0.25900289,710.78,708.81,1.03532385]
[1735124121310,1.168,710.88,708.81,1.03532385]
[1735124121510,0.25900948,710.87,708.81,1.03532385]
[1735124121707,0.25900948,710.86,708.81,1.03532385]
[1735124121906,0.25900948,710.85,708.81,1.03532385]
[1735124122108,0.25900948,710.84,708.81,1.03532385]
[1735124122307,0.25900948,710.83,708.81,1.03532385]
[1735124122508,0.25900948,710.82,708.84,1.03532385]
[1735124122812,0.25900948,710.81,708.84,1.03532385]
[1735124123012,0.25900948,710.8,708.84,1.03532385]
[1735124123315,0.25900948,710.79,708.84,1.03532385]
[1735124123509,0.25900948,710.78,708.9,1.03532385]
[1735124123702,0.25900948,710.77,708.9,1.03532385]
[1735124123907,1.168,710.88,708.9,1.03532385]
[1735124123908,0.25900948,710.76,708.9,1.03532385]
[1735124124107,0.25900075,710.75,708.9,1.03532385]
[1735124124307,0.25900075,710.74,708.9,1.03532385]
[1735124124509,0.25900075,710.73,708.92,1.03532385]
[1735124124710,0.25900075,710.72,708.92,1.03532385]
[1735124125009,0.25900075,710.71,708.92,1.03532385]
[1735124125211,0.25900075,710.7,708.92,1.03532385]
[1735124125411,0.25900075,710.69,708.91,1.03532385]
[1735124125604,0.25900075,710.68,708.91,1.03532385]
[1735124125807,0.25900075,710.67,708.91,1.03532385]
[1735124126109,0.25900075,710.66,708.91,1.03532385]
[1735124126309,0.25900075,710.65,708.91,1.03532385]
[1735124126509,0.25900075,710.64,708.91,1.03532385]
[1735124126710,0.795,711.22,709.1,1.03532385]
[1735124126711,0.25890117,710.63,709.1,1.03532385]
[1735124126908,0.25890117,710.62,709.1,1.03532385]
[1735124127108,0.25890117,710.61,709.1,1.03532385]
[1735124127305,0.25890117,710.6,709.1,1.03532385]
[1735124127505,0.795,711.22,709.1,1.03532385]
[1735124127706,0.25888805,711.21,709.14,1.03532385]
[1735124127911,0.25888805,711.2,709.14,1.03532385]
[1735124128105,0.25888805,711.19,709.14,1.03532385]
[1735124128310,0.25888805,711.18,709.14,1.03532385]
[1735124128611,0.25888805,711.17,709.15,1.03532385]
[1735124128807,0.25888805,711.16,709.15,1.03532385]
[1735124129012,0.25888805,711.15,709.15,1.03532385]
[1735124129310,1.055,711.21,709.15,1.03532385]
[1735124129509,1.055,711.21,708.46,2.11378621]
[1735124129510,0.25888022,711.2,709.16,1.03532385]
[1735124129811,0.25888022,711.19,709.16,1.03532385]
[1735124130009,0.25888022,711.18,709.16,1.03532385]
[1735124130311,0.25886607,711.17,709.16,1.03532385]
[1735124130511,0.25886607,711.16,709.16,1.03532385]
[1735124130712,0.25886607,711.15,709.24,1.03532385]
[1735124130914,0.25886607,711.14,709.24,1.03532385]
[1735124131211,0.25886607,711.13,709.24,1.03532385]
[1735124131411,0.25886607,711.12,709.38,1.03532385]
[1735124131611,0.25886607,711.11,709.38,1.03532385]
[1735124131809,0.25886607,711.1,709.38,1.03532385]
[1735124132008,0.25886607,711.09,709.38,1.03532385]
[1735124132210,0.25883279,711.08,709.33,1.03532385]
[1735124132409,0.25883279,711.07,709.33,1.03532385]
[1735124132609,0.25883279,711.06,709.33,1.03532385]
[1735124132810,0.25883279,711.05,709.33,1.03532385]
[1735124133113,0.25883279,711.04,709.37,1.03532385]
[1735124133305,0.25883279,711.03,709.37,1.03532385]
[1735124133506,0.25883279,711.02,709.37,1.03532385]
[1735124133709,0.25883279,711.01,709.37,1.03532385]
[1735124133906,0.25883279,711.0,709.4,1.03532385]
[1735124134110,0.25883279,710.99,709.4,1.03532385]
[1735124134310,0.25883279,710.98,709.4,1.03532385]
[1735124134512,0.25883279,710.97,709.4,1.03532385]
[1735124134712,1.106,711.2,709.4,1.03532385]
[1735124134914,0.2588314,711.19,709.4,1.03532385]
[1735124135115,0.2588314,711.18,709.4,1.03532385]
[1735124135308,0.2588314,711.17,709.4,1.03532385]
[1735124135513,1.106,711.2,709.4,1.03532385]
[1735124135514,0.2588314,711.16,709.4,1.03532385]
[1735124135709,0.2588314,711.15,709.4,1.03532385]
[1735124135913,0.2588314,711.14,709.4,1.03532385]
[1735124136114,0.2588314,711.13,709.4,1.03532385]
[1735124136316,0.2588314,711.12,709.4,1.03532385]
[1735124136614,0.2588314,711.11,709.4,1.03532385]
[1735124136815,0.2588314,711.1,709.4,1.03532385]
[1735124137008,0.2588314,711.09,709.4,1.03532385]
[1735124137210,0.2588314,711.08,709.4,1.03532385]
[1735124137514,0.25880795,711.07,709.4,1.03532385]
[1735124137710,0.25880795,711.06,709.4,1.03532385]
[1735124137907,0.25880795,711.05,709.4,1.03532385]
[1735124138113,0.25880795,711.04,709.4,1.03532385]
[1735124138415,0.25879798,711.03,709.4,1.03532385]
[1735124138615,0.25879798,711.02,709.4,1.03532385]
[1735124138915,0.25879798,711.01,709.4,1.03532385]
[1735124139115,0.25879798,711.0,709.4,1.03532385]
[1735124139315,0.25879798,710.99,709.4,1.03532385]
[1735124139516,0.25879798,710.98,709.4,1.03532385]
[1735124139718,0.25879798,710.97,709.4,1.03532385]
[1735124139918,0.25879798,710.96,709.4,1.03532385]
[1735124140121,1.106,711.2,709.22,1.03532385]
[1735124140419,0.25888255,711.19,709.22,1.03532385]
[1735124140612,0.25888255,711.18,709.22,1.03532385]
[1735124140820,0.25888255,711.17,709.22,1.03532385]
[1735124141116,0.25888255,711.16,709.16,1.03532385]
[1735124141312,0.25888255,711.15,709.16,1.03532385]
[1735124141516,0.25888255,711.14,709.16,1.03532385]
[1735124141812,0.25888255,711.13,709.16,1.03532385]
[1735124142015,0.25888255,711.12,709.16,1.03532385]
[1735124142218,0.25888255,711.11,709.18,1.03532385]
[1735124142418,0.25888255,711.1,709.18,1.03532385]
[1735124142613,0.25888255,711.09,709.18,1.03532385]
[1735124142819,0.25889369,711.08,709.18,1.03532385]
[1735124143014,0.25889369,711.07,709.18,1.03532385]
[1735124143216,0.25889369,711.06,709.18,1.03532385]
[1735124143420,0.25889369,711.05,709.17,1.03532385]
[1735124143714,0.25889369,711.04,709.17,1.03532385]
[1735124143914,0.25889369,711.03,709.17,1.03532385]
[1735124144114,0.25889369,711.02,709.17,1.03532385]
[1735124144315,0.25889369,711.01,709.18,1.03532385]
[1735124144619,0.25889369,711.0,709.18,1.03532385]
[1735124144818,0.25889369,710.99,709.18,1.03532385]
[1735124145018,0.25889369,710.98,709.18,1.03532385]
[1735124145215,0.25889369,710.97,709.18,1.03532385]
[1735124145411,0.25889369,710.96,709.18,1.03532385]
[1735124145616,0.25889369,710.95,709.13,1.03532385]
[1735124145813,0.25889369,710.94,709.13,1.03532385]
[1735124146014,0.25889369,710.93,709.13,1.03532385]
[1735124146216,0.25889369,710.92,709.13,1.03532385]
[1735124146417,0.25889369,711.19,709.13,1.03532385]
[1735124146613,0.25889369,711.18,709.13,1.03532385]
[1735124146915,0.25889369,711.17,709.13,1.03532385]
[1735124147221,0.25889369,711.16,709.16,1.03532385]
[1735124147414,0.25889369,711.15,709.16,1.03532385]
[1735124147715,0.25889369,711.14,709.16,1.03532385]
[1735124148023,0.25889369,711.13,709.16,1.03532385]
[1735124148219,0.25889369,711.12,709.14,1.03532385]
[1735124148520,0.25887413,711.11,709.14,1.03532385]
[1735124148720,0.25887413,711.1,709.14,1.03532385]
[1735124148921,0.25887413,711.09,709.14,1.03532385]
[1735124149120,0.25887413,711.08,709.14,1.03532385]
[1735124149414,0.25887413,711.08,708.45,1.24238863]
[1735124149415,0.25887413,711.07,709.15,1.03532385]
[1735124149621,0.25887413,711.06,709.15,1.03532385]
[1735124149821,0.25887413,711.05,709.15,1.03532385]
[1735124150021,0.25887413,711.04,709.15,1.03532385]
[1735124150220,0.25887413,711.03,709.15,1.03532385]
[1735124150420,0.25887413,711.02,709.17,1.03532385]
[1735124150614,0.25887413,711.01,709.17,1.03532385]
[1735124150814,0.25887413,711.0,709.17,1.03532385]
[1735124151125,0.25888481,710.99,709.17,1.03532385]
[1735124151519,0.25888481,710.99,709.19,1.03532385]
[1735124152621,0.25888481,710.99,709.27,1.03532385]
[1735124153519,0.25888481,710.98,709.27,1.03532385]
[1735124153825,0.25888481,710.97,709.33,1.03532385]
[1735124154026,0.25888481,710.96,709.33,1.03532385]
[1735124154224,0.25888481,710.95,709.33,1.03532385]
[1735124154425,0.25888481,710.94,709.33,1.03532385]
[1735124154625,0.25888481,710.94,709.07,1.03532385]
[1735124154626,0.25886154,710.93,709.5,1.03532385]
[1735124154826,0.25886154,710.92,709.5,1.03532385]
[1735124155124,0.25886154,710.91,709.5,1.03532385]
[1735124155326,0.2588544,710.9,709.5,1.03532385]
[1735124155522,0.2588544,710.89,709.5,1.03532385]
[1735124155725,0.2588544,710.88,709.54,1.03532385]
[1735124155923,0.801,711.0,709.54,1.03532385]
[1735124155924,0.2588544,710.87,709.54,1.03532385]
[1735124156225,0.2588544,710.86,709.54,1.03532385]
[1735124156426,0.2588544,710.85,709.54,1.03532385]
[1735124156626,0.801,711.0,709.55,1.03532385]
[1735124156627,0.25886011,710.84,709.55,1.03532385]
[1735124156925,0.801,711.0,709.55,1.03532385]
[1735124157428,0.25891083,710.99,709.16,1.03532385]
[1735124158727,0.25891083,710.99,709.27,1.03532385]
[1735124159129,0.801,711.0,709.27,1.03532385]
[1735124159524,0.25895915,710.99,709.27,1.03532385]
[1735124160033,0.25895915,710.99,709.29,1.03532385]
[1735124160531,0.25895915,710.98,709.29,1.03532385]
[1735124160727,0.25895915,710.97,709.29,1.03532385]
[1735124160930,0.25895915,710.96,709.29,1.03532385]
[1735124161130,0.25899612,710.95,709.31,1.03532385]
[1735124161325,0.25899612,710.94,709.31,1.03532385]
[1735124161529,0.25899612,710.93,709.31,1.03532385]
[1735124161729,0.25899612,710.92,709.31,1.03532385]
[1735124161929,0.801,711.0,709.31,1.03532385]
[1735124162129,0.25900734,710.99,709.31,1.03532385]
[1735124162330,1.03521209,710.97,709.21,1.03532385]
[1735124162530,0.25900734,710.96,709.21,1.03532385]
[1735124162733,0.25900734,710.95,709.21,1.03532385]
[1735124162930,0.25900734,710.94,709.21,1.03532385]
[1735124163133,0.25900734,710.93,709.16,1.03532385]
[1735124163330,0.25900734,710.92,709.16,1.03532385]
[1735124163532,0.25900734,710.91,709.16,1.03532385]
[1735124163729,1.83621209,711.0,709.16,1.03532385]
[1735124163935,0.25898778,710.99,709.16,1.03532385]
[1735124164136,0.25898778,710.98,709.17,1.03532385]
[1735124164332,0.25898778,710.97,709.17,1.03532385]
[1735124164535,0.25898778,710.96,709.17,1.03532385]
[1735124164735,0.25898778,710.95,709.17,1.03532385]
[1735124164936,0.25898778,710.94,709.14,1.03532385]
[1735124165134,0.25898778,710.93,709.14,1.03532385]
[1735124165334,0.25898778,710.92,709.14,1.03532385]
[1735124165535,0.25898778,710.91,709.14,1.03532385]
[1735124165731,0.25898778,710.99,709.14,1.03532385]
[1735124166035,0.25898778,710.99,708.11,2.11378621]
[1735124166036,0.25898778,710.98,709.2,1.03532385]
[1735124166236,0.25898778,710.97,709.2,1.03532385]
[1735124166437,0.25891234,710.96,709.2,1.03532385]
[1735124166736,0.25891234,710.95,709.2,1.03532385]
[1735124166932,0.25891234,710.94,709.34,1.03532385]
[1735124167136,0.25891234,710.93,709.34,1.03532385]
[1735124167330,0.25891234,710.92,709.34,1.03532385]
[1735124167536,0.25891234,710.91,709.34,1.03532385]
[1735124167737,0.25891234,710.9,709.34,1.03532385]
[1735124167933,0.25891234,710.89,709.34,1.03532385]
[1735124168138,0.25891234,710.89,708.67,2.11378621]
[1735124168139,0.25891234,710.88,709.46,1.03532385]
[1735124168334,0.25891234,710.87,709.46,1.03532385]
[1735124168533,0.25891234,710.86,709.46,1.03532385]
[1735124168732,0.2588362,710.85,709.46,1.03532385]
[1735124168936,0.801,711.0,709.46,1.03532385]
[1735124169139,0.25882948,710.99,709.46,1.03532385]
[1735124169339,0.25882948,710.99,709.62,1.03532385]
[1735124169839,0.25883289,710.98,709.62,1.03532385]
[1735124170040,0.25883289,710.99,709.62,1.03532385]
[1735124170240,0.25883289,710.98,709.62,1.03532385]
[1735124170540,0.25883289,710.97,709.63,1.03532385]
[1735124170743,0.25883289,710.96,709.63,1.03532385]
[1735124170938,0.25883289,710.95,709.63,1.03532385]
[1735124171141,0.25883289,710.94,709.55,1.03532385]
[1735124171340,0.25883289,710.93,709.55,1.03532385]
[1735124171537,0.25883289,710.92,709.55,1.03532385]
[1735124171739,0.25883289,710.99,709.55,1.03532385]
[1735124171943,0.25883289,710.98,709.57,1.03532385]
[1735124172141,0.25883289,710.97,709.57,1.03532385]
[1735124172439,0.25883289,710.96,709.57,1.03532385]
[1735124172639,0.25883289,710.95,709.57,1.03532385]
[1735124172941,0.25886267,710.94,709.57,1.03532385]
[1735124173139,0.25886267,710.93,709.57,1.03532385]